[Event "Titled Tuesday Blitz November 07 Early 2023"]
[White "Firouzja, Alireza"]
[Black "Tarigan, Gilbert Elroy"]
[WhiteFideId "12573981"]
[BlackFideId "7108133"]
[WhiteElo "3077"]
[BlackElo "2846"]
[Result "1-0"]
[Round "4"]
[TimeControl "180+1"]
[Date "2023.11.07"]
[WhiteClock "0:00:34"]
[BlackClock "0:00:00"]
[Board "3"]

1. a3 {[%clk 0:03:00]}  a6 {[%clk 0:02:57]} 2. c3 {[%clk 0:03:01]}  h6 {[%clk 0:02:55]} 3. e4 {[%clk 0:03:00]}  d5 {[%clk 0:02:54]} 4. exd5 {[%clk 0:03:01]}  Qxd5 {[%clk 0:02:55]} 5. d4 {[%clk 0:03:01]}  Nf6 {[%clk 0:02:53]} 6. Nf3 {[%clk 0:03:01]}  Nc6 {[%clk 0:02:51]} 7. c4 {[%clk 0:03:01]}  Qh5 {[%clk 0:02:47]} 8. d5 {[%clk 0:02:39]}  Ne5 {[%clk 0:02:46]} 9. Be2 {[%clk 0:02:36]}  Nxf3+ {[%clk 0:02:46]} 10. Bxf3 {[%clk 0:02:36]}  Bg4 {[%clk 0:02:47]} 11. Qa4+ {[%clk 0:02:20]}  b5 {[%clk 0:02:07]} 12. cxb5 {[%clk 0:02:21]}  Bxf3 {[%clk 0:02:07]} 13. gxf3 {[%clk 0:02:02]}  Qxf3 {[%clk 0:01:44]} 14. bxa6+ {[%clk 0:02:02]}  Kd8 {[%clk 0:01:45]} 15. Rg1 {[%clk 0:02:01]}  Qe4+ {[%clk 0:01:33]} 16. Qxe4 {[%clk 0:02:01]}  Nxe4 {[%clk 0:01:34]} 17. Rg4 {[%clk 0:01:57]}  f5 {[%clk 0:01:28]} 18. Rg6 {[%clk 0:01:56]}  Nf6 {[%clk 0:01:28]} 19. Nc3 {[%clk 0:01:55]}  Rxa6 {[%clk 0:01:27]} 20. Bf4 {[%clk 0:01:55]}  c6 {[%clk 0:00:56]} 21. O-O-O {[%clk 0:01:49]}  Ke8 {[%clk 0:00:52]} 22. Kb1 {[%clk 0:01:37]}  Kf7 {[%clk 0:00:50]} 23. dxc6 {[%clk 0:01:38]}  Rxc6 {[%clk 0:00:49]} 24. Rg3 {[%clk 0:01:36]}  g5 {[%clk 0:00:49]} 25. Be5 {[%clk 0:01:36]}  Bg7 {[%clk 0:00:49]} 26. Re3 {[%clk 0:01:08]}  Ng4 {[%clk 0:00:21]} 27. Bxg7 {[%clk 0:01:08]}  Nxe3 {[%clk 0:00:22]} 28. Bxh8 {[%clk 0:01:09]}  Nxd1 {[%clk 0:00:23]} 29. Nxd1 {[%clk 0:01:09]}  Ke6 {[%clk 0:00:15]} 30. Nc3 {[%clk 0:01:05]}  f4 {[%clk 0:00:15]} 31. b4 {[%clk 0:01:05]}  Kf5 {[%clk 0:00:13]} 32. Nd5 {[%clk 0:01:03]}  Ke6 {[%clk 0:00:06]} 33. Nc3 {[%clk 0:00:59]}  Kf5 {[%clk 0:00:06]} 34. b5 {[%clk 0:00:46]}  Rc8 {[%clk 0:00:07]} 35. Bg7 {[%clk 0:00:47]}  Rg8 {[%clk 0:00:05]} 36. Bxh6 {[%clk 0:00:40]}  Kg6 {[%clk 0:00:05]} 37. a4 {[%clk 0:00:39]}  Kxh6 {[%clk 0:00:05]} 38. b6 {[%clk 0:00:39]}  Ra8 {[%clk 0:00:01]} 39. Kb2 {[%clk 0:00:33]}  Ra6 {[%clk 0:00:00]} 40. Nd5 {[%clk 0:00:34]} 1-0


[Site "https://www.chess.com"]

[Event "Titled Tuesday Blitz November 07 Early 2023"]
[White "Bluebaum, Matthias"]
[Black "Pendos666"]
[WhiteFideId "24651516"]
[WhiteElo "3070"]
[BlackElo "2839"]
[Result "1-0"]
[Round "4"]
[TimeControl "180+1"]
[Date "2023.11.07"]
[WhiteClock "0:02:30"]
[BlackClock "0:00:20"]
[Board "5"]

1. d4 {[%clk 0:03:00]}  Nf6 {[%clk 0:02:59]} 2. c4 {[%clk 0:03:01]}  c5 {[%clk 0:02:58]} 3. d5 {[%clk 0:03:01]}  b5 {[%clk 0:02:58]} 4. cxb5 {[%clk 0:03:02]}  a6 {[%clk 0:02:58]} 5. bxa6 {[%clk 0:03:03]}  g6 {[%clk 0:02:58]} 6. Nc3 {[%clk 0:03:03]}  Bg7 {[%clk 0:02:58]} 7. a7 {[%clk 0:03:04]}  Rxa7 {[%clk 0:02:58]} 8. e4 {[%clk 0:03:04]}  O-O {[%clk 0:02:55]} 9. Nf3 {[%clk 0:03:05]}  e6 {[%clk 0:02:55]} 10. Be2 {[%clk 0:03:05]}  exd5 {[%clk 0:02:54]} 11. exd5 {[%clk 0:03:06]}  d6 {[%clk 0:02:54]} 12. O-O {[%clk 0:03:07]}  Na6 {[%clk 0:02:47]} 13. Nb5 {[%clk 0:03:07]}  Rd7 {[%clk 0:02:47]} 14. Bc4 {[%clk 0:03:07]}  Bb7 {[%clk 0:02:46]} 15. Qb3 {[%clk 0:03:07]}  Qa8 {[%clk 0:02:10]} 16. Rd1 {[%clk 0:03:07]}  Nc7 {[%clk 0:01:51]} 17. Nxc7 {[%clk 0:03:06]}  Rxc7 {[%clk 0:01:51]} 18. Bf4 {[%clk 0:03:06]}  Rd8 {[%clk 0:01:51]} 19. a4 {[%clk 0:03:04]}  Ne8 {[%clk 0:01:34]} 20. a5 {[%clk 0:03:04]}  Ba6 {[%clk 0:01:30]} 21. Bxa6 {[%clk 0:02:53]}  Qxa6 {[%clk 0:01:30]} 22. Re1 {[%clk 0:02:50]}  Rb7 {[%clk 0:01:20]} 23. Qa4 {[%clk 0:02:50]}  Nc7 {[%clk 0:01:02]} 24. Qc6 {[%clk 0:02:50]}  Qxc6 {[%clk 0:01:01]} 25. dxc6 {[%clk 0:02:50]}  Rxb2 {[%clk 0:01:00]} 26. Re7 {[%clk 0:02:51]}  Nd5 {[%clk 0:00:58]} 27. Rd7 {[%clk 0:02:52]}  Ra8 {[%clk 0:00:55]} 28. Bxd6 {[%clk 0:02:43]}  c4 {[%clk 0:00:40]} 29. c7 {[%clk 0:02:37]}  Nxc7 {[%clk 0:00:39]} 30. Rxc7 {[%clk 0:02:38]}  c3 {[%clk 0:00:35]} 31. h4 {[%clk 0:02:35]}  h6 {[%clk 0:00:34]} 32. Be5 {[%clk 0:02:33]}  Bxe5 {[%clk 0:00:27]} 33. Nxe5 {[%clk 0:02:34]}  c2 {[%clk 0:00:27]} 34. Rc1 {[%clk 0:02:32]}  Rxa5 {[%clk 0:00:27]} 35. Nf3 {[%clk 0:02:31]}  Raa2 {[%clk 0:00:26]} 36. Nd4 {[%clk 0:02:32]}  Rb1 {[%clk 0:00:25]} 37. Rxc2 {[%clk 0:02:31]}  Rxc2 {[%clk 0:00:23]} 38. Rxb1 {[%clk 0:02:31]}  Rc4 {[%clk 0:00:20]} 39. Rd1 {[%clk 0:02:30]} 1-0


[Site "https://www.chess.com"]

[Event "Titled Tuesday Blitz November 07 Early 2023"]
[White "Bacrot, Etienne"]
[Black "Martinez Alcantara, Jose Eduardo"]
[WhiteFideId "605506"]
[BlackFideId "3805662"]
[WhiteElo "2831"]
[BlackElo "3047"]
[Result "0-1"]
[Round "4"]
[TimeControl "180+1"]
[Date "2023.11.07"]
[WhiteClock "0:01:40"]
[BlackClock "0:00:45"]
[Board "7"]

1. e4 {[%clk 0:03:00]}  c5 {[%clk 0:03:00]} 2. Nf3 {[%clk 0:03:01]}  d6 {[%clk 0:03:01]} 3. c3 {[%clk 0:03:01]}  Nf6 {[%clk 0:03:01]} 4. Be2 {[%clk 0:03:01]}  Bd7 {[%clk 0:02:59]} 5. d3 {[%clk 0:03:00]}  Nc6 {[%clk 0:02:59]} 6. O-O {[%clk 0:03:01]}  e5 {[%clk 0:02:59]} 7. Re1 {[%clk 0:03:01]}  Be7 {[%clk 0:02:59]} 8. Bf1 {[%clk 0:03:02]}  O-O {[%clk 0:03:00]} 9. h3 {[%clk 0:03:00]}  Re8 {[%clk 0:03:00]} 10. d4 {[%clk 0:03:00]}  Bf8 {[%clk 0:02:58]} 11. d5 {[%clk 0:03:00]}  Ne7 {[%clk 0:02:58]} 12. c4 {[%clk 0:02:59]}  Ng6 {[%clk 0:02:59]} 13. Nc3 {[%clk 0:02:59]}  Be7 {[%clk 0:02:59]} 14. g3 {[%clk 0:03:00]}  h6 {[%clk 0:03:00]} 15. Bg2 {[%clk 0:03:00]}  a6 {[%clk 0:02:52]} 16. a3 {[%clk 0:02:53]}  b5 {[%clk 0:02:50]} 17. Be3 {[%clk 0:02:49]}  Qc7 {[%clk 0:02:40]} 18. Qc2 {[%clk 0:02:44]}  Rec8 {[%clk 0:02:37]} 19. Rec1 {[%clk 0:02:43]}  Rab8 {[%clk 0:02:22]} 20. Nd2 {[%clk 0:02:40]}  Qb7 {[%clk 0:02:07]} 21. Qd3 {[%clk 0:02:33]}  h5 {[%clk 0:01:24]} 22. Rab1 {[%clk 0:02:33]}  h4 {[%clk 0:01:24]} 23. b4 {[%clk 0:02:33]}  hxg3 {[%clk 0:01:25]} 24. fxg3 {[%clk 0:02:33]}  cxb4 {[%clk 0:01:22]} 25. axb4 {[%clk 0:02:31]}  Rc7 {[%clk 0:01:04]} 26. cxb5 {[%clk 0:02:01]}  axb5 {[%clk 0:01:05]} 27. Nb3 {[%clk 0:01:58]}  Qc8 {[%clk 0:01:05]} 28. Na5 {[%clk 0:01:57]}  Bxh3 {[%clk 0:01:04]} 29. Nxb5 {[%clk 0:01:51]}  Rxc1+ {[%clk 0:00:59]} 30. Rxc1 {[%clk 0:01:51]}  Qg4 {[%clk 0:01:00]} 31. Bxh3 {[%clk 0:01:39]}  Qxh3 {[%clk 0:00:45]} 32. Ba7 {[%clk 0:01:40]} 0-1


[Site "https://www.chess.com"]

[Event "Titled Tuesday Blitz November 07 Early 2023"]
[White "Pranesh M"]
[Black "Zakhartsov, Vladimir"]
[WhiteFideId "35028600"]
[BlackFideId "4145097"]
[WhiteElo "3032"]
[BlackElo "2827"]
[Result "1-0"]
[Round "4"]
[TimeControl "180+1"]
[Date "2023.11.07"]
[WhiteClock "0:00:39"]
[BlackClock "0:00:00"]
[Board "8"]

1. e4 {[%clk 0:02:58]}  c5 {[%clk 0:02:53]} 2. Nf3 {[%clk 0:02:58]}  Nc6 {[%clk 0:02:53]} 3. d4 {[%clk 0:02:58]}  cxd4 {[%clk 0:02:54]} 4. Nxd4 {[%clk 0:02:59]}  Nf6 {[%clk 0:02:53]} 5. Nc3 {[%clk 0:02:59]}  e5 {[%clk 0:02:53]} 6. Ndb5 {[%clk 0:03:00]}  d6 {[%clk 0:02:51]} 7. Nd5 {[%clk 0:03:00]}  Nxd5 {[%clk 0:02:50]} 8. exd5 {[%clk 0:03:01]}  Nb8 {[%clk 0:02:51]} 9. c4 {[%clk 0:03:01]}  Be7 {[%clk 0:02:49]} 10. Be2 {[%clk 0:02:59]}  O-O {[%clk 0:02:49]} 11. O-O {[%clk 0:02:59]}  f5 {[%clk 0:02:47]} 12. c5 {[%clk 0:02:59]}  a6 {[%clk 0:02:45]} 13. cxd6 {[%clk 0:02:58]}  Bxd6 {[%clk 0:02:44]} 14. Nxd6 {[%clk 0:02:59]}  Qxd6 {[%clk 0:02:45]} 15. a4 {[%clk 0:02:58]}  Rd8 {[%clk 0:02:37]} 16. b3 {[%clk 0:02:58]}  Kh8 {[%clk 0:02:37]} 17. Bc4 {[%clk 0:02:49]}  Nd7 {[%clk 0:02:32]} 18. Ba3 {[%clk 0:02:47]}  Qg6 {[%clk 0:02:31]} 19. Be7 {[%clk 0:02:43]}  Re8 {[%clk 0:02:30]} 20. d6 {[%clk 0:02:43]}  Nb6 {[%clk 0:02:23]} 21. Qf3 {[%clk 0:02:39]}  e4 {[%clk 0:01:50]} 22. Qf4 {[%clk 0:02:37]}  Be6 {[%clk 0:01:49]} 23. a5 {[%clk 0:02:30]}  Nc8 {[%clk 0:01:31]} 24. d7 {[%clk 0:01:54]}  Bxd7 {[%clk 0:01:25]} 25. Bc5 {[%clk 0:01:54]}  Bc6 {[%clk 0:01:21]} 26. Rfd1 {[%clk 0:01:51]}  h6 {[%clk 0:01:07]} 27. h3 {[%clk 0:01:44]}  Kh7 {[%clk 0:01:03]} 28. Rd4 {[%clk 0:01:41]}  Na7 {[%clk 0:00:48]} 29. Rd6 {[%clk 0:01:36]}  Qg5 {[%clk 0:00:48]} 30. Qxg5 {[%clk 0:01:07]}  hxg5 {[%clk 0:00:49]} 31. Bf7 {[%clk 0:01:07]}  Rf8 {[%clk 0:00:40]} 32. Bg6+ {[%clk 0:01:07]}  Kh8 {[%clk 0:00:37]} 33. Re6 {[%clk 0:01:05]}  Rf6 {[%clk 0:00:31]} 34. Rxf6 {[%clk 0:01:05]}  gxf6 {[%clk 0:00:32]} 35. Bxf5 {[%clk 0:01:05]}  Nb5 {[%clk 0:00:29]} 36. Rd1 {[%clk 0:01:03]}  Kg7 {[%clk 0:00:29]} 37. Kh2 {[%clk 0:01:00]}  Re8 {[%clk 0:00:26]} 38. b4 {[%clk 0:00:57]}  Re5 {[%clk 0:00:25]} 39. Bd7 {[%clk 0:00:56]}  Nc3 {[%clk 0:00:22]} 40. Bxc6 {[%clk 0:00:53]}  Nxd1 {[%clk 0:00:16]} 41. Bxb7 {[%clk 0:00:53]}  Re6 {[%clk 0:00:16]} 42. Bb6 {[%clk 0:00:53]}  Nc3 {[%clk 0:00:13]} 43. Bxa6 {[%clk 0:00:52]}  Na4 {[%clk 0:00:11]} 44. Bc4 {[%clk 0:00:48]}  Rxb6 {[%clk 0:00:11]} 45. axb6 {[%clk 0:00:49]}  Nxb6 {[%clk 0:00:12]} 46. Be6 {[%clk 0:00:49]}  Kf8 {[%clk 0:00:04]} 47. Bf5 {[%clk 0:00:49]}  e3 {[%clk 0:00:04]} 48. fxe3 {[%clk 0:00:49]}  Nd5 {[%clk 0:00:04]} 49. b5 {[%clk 0:00:48]}  Ke7 {[%clk 0:00:03]} 50. e4 {[%clk 0:00:49]}  Nb6 {[%clk 0:00:03]} 51. g3 {[%clk 0:00:49]}  Nc4 {[%clk 0:00:02]} 52. h4 {[%clk 0:00:49]}  gxh4 {[%clk 0:00:03]} 53. gxh4 {[%clk 0:00:49]}  Kd6 {[%clk 0:00:04]} 54. h5 {[%clk 0:00:49]}  Ne5 {[%clk 0:00:04]} 55. Kg3 {[%clk 0:00:46]}  Kc5 {[%clk 0:00:04]} 56. Be6 {[%clk 0:00:39]}  Kxb5 {[%clk 0:00:03]} 57. Kf4 {[%clk 0:00:40]}  Kc5 {[%clk 0:00:04]} 58. Kf5 {[%clk 0:00:40]}  Kd6 {[%clk 0:00:04]} 59. h6 {[%clk 0:00:39]}  Nc6 {[%clk 0:00:02]} 60. h7 {[%clk 0:00:39]}  Nd4+ {[%clk 0:00:00]} 61. Kg6 {[%clk 0:00:39]} 1-0


[Site "https://www.chess.com"]

[Event "Titled Tuesday Blitz November 07 Early 2023"]
[White "Xiong, Jeffery"]
[Black "Fernandez, Daniel"]
[WhiteFideId "2047640"]
[BlackFideId "2015390"]
[WhiteElo "3013"]
[BlackElo "2821"]
[Result "1/2-1/2"]
[Round "4"]
[TimeControl "180+1"]
[Date "2023.11.07"]
[WhiteClock "0:01:18"]
[BlackClock "0:00:51"]
[Board "9"]

1. Nf3 {[%clk 0:03:00]}  d5 {[%clk 0:02:59]} 2. g3 {[%clk 0:03:00]}  Nf6 {[%clk 0:02:55]} 3. Bg2 {[%clk 0:03:00]}  c6 {[%clk 0:02:56]} 4. O-O {[%clk 0:03:01]}  Bg4 {[%clk 0:02:54]} 5. d3 {[%clk 0:03:01]}  Nbd7 {[%clk 0:02:55]} 6. h3 {[%clk 0:03:01]}  Bh5 {[%clk 0:02:54]} 7. Qe1 {[%clk 0:03:01]}  e5 {[%clk 0:02:54]} 8. e4 {[%clk 0:03:01]}  dxe4 {[%clk 0:02:54]} 9. dxe4 {[%clk 0:03:02]}  Bc5 {[%clk 0:02:54]} 10. Nbd2 {[%clk 0:03:03]}  O-O {[%clk 0:02:54]} 11. Nb3 {[%clk 0:03:01]}  Bb6 {[%clk 0:02:52]} 12. a4 {[%clk 0:02:58]}  a5 {[%clk 0:02:51]} 13. Nh4 {[%clk 0:02:55]}  Re8 {[%clk 0:02:50]} 14. Nf5 {[%clk 0:02:54]}  Nf8 {[%clk 0:02:25]} 15. Bd2 {[%clk 0:02:35]}  Bg6 {[%clk 0:02:25]} 16. Nh4 {[%clk 0:02:14]}  Ne6 {[%clk 0:02:23]} 17. Nxg6 {[%clk 0:02:14]}  hxg6 {[%clk 0:02:22]} 18. Rd1 {[%clk 0:02:15]}  Qc7 {[%clk 0:02:22]} 19. Bc3 {[%clk 0:02:13]}  Nd7 {[%clk 0:02:21]} 20. h4 {[%clk 0:02:12]}  Ndc5 {[%clk 0:02:19]} 21. Nxc5 {[%clk 0:02:13]}  Bxc5 {[%clk 0:02:20]} 22. Bh3 {[%clk 0:02:07]}  Nd4 {[%clk 0:02:14]} 23. Bxd4 {[%clk 0:02:03]}  Bxd4 {[%clk 0:02:15]} 24. c3 {[%clk 0:02:03]}  Bc5 {[%clk 0:02:16]} 25. Rd7 {[%clk 0:02:01]}  Qb6 {[%clk 0:02:17]} 26. Qd2 {[%clk 0:02:01]}  Rad8 {[%clk 0:02:17]} 27. Rd1 {[%clk 0:01:59]}  Rxd7 {[%clk 0:02:16]} 28. Qxd7 {[%clk 0:01:59]}  Bxf2+ {[%clk 0:02:15]} 29. Kg2 {[%clk 0:01:58]}  Rf8 {[%clk 0:02:15]} 30. Rf1 {[%clk 0:01:58]}  Bc5 {[%clk 0:02:13]} 31. b4 {[%clk 0:01:53]}  axb4 {[%clk 0:02:09]} 32. Rxf7 {[%clk 0:01:54]}  Rxf7 {[%clk 0:01:38]} 33. Be6 {[%clk 0:01:54]}  Be7 {[%clk 0:01:38]} 34. Qe8+ {[%clk 0:01:48]}  Kh7 {[%clk 0:01:36]} 35. Qxf7 {[%clk 0:01:48]}  Qd8 {[%clk 0:01:32]} 36. cxb4 {[%clk 0:01:48]}  Bxb4 {[%clk 0:01:22]} 37. h5 {[%clk 0:01:48]}  Qf6 {[%clk 0:00:51]} 38. hxg6+ {[%clk 0:01:18]} 1/2-1/2


[Site "https://www.chess.com"]

[Event "Titled Tuesday Blitz November 07 Early 2023"]
[White "BardArtem"]
[Black "Kovalenko, Igor"]
[BlackFideId "14117908"]
[WhiteElo "2819"]
[BlackElo "2963"]
[Result "0-1"]
[Round "4"]
[TimeControl "180+1"]
[Date "2023.11.07"]
[WhiteClock "0:00:00"]
[BlackClock "0:01:09"]
[Board "11"]

1. e4 {[%clk 0:03:00]}  c5 {[%clk 0:02:59]} 2. c3 {[%clk 0:03:00]}  d5 {[%clk 0:02:59]} 3. exd5 {[%clk 0:03:01]}  Qxd5 {[%clk 0:03:00]} 4. d4 {[%clk 0:03:02]}  Nf6 {[%clk 0:03:00]} 5. Nf3 {[%clk 0:03:02]}  e6 {[%clk 0:03:00]} 6. Na3 {[%clk 0:03:02]}  a6 {[%clk 0:03:00]} 7. Nc4 {[%clk 0:03:01]}  Nbd7 {[%clk 0:03:01]} 8. a4 {[%clk 0:02:55]}  b6 {[%clk 0:03:01]} 9. Be2 {[%clk 0:02:52]}  Bb7 {[%clk 0:03:01]} 10. O-O {[%clk 0:02:52]}  Be7 {[%clk 0:03:00]} 11. Be3 {[%clk 0:02:43]}  O-O {[%clk 0:02:57]} 12. dxc5 {[%clk 0:02:34]}  bxc5 {[%clk 0:02:56]} 13. Qxd5 {[%clk 0:02:30]}  Bxd5 {[%clk 0:02:54]} 14. Bf4 {[%clk 0:02:11]}  Nh5 {[%clk 0:02:49]} 15. Be5 {[%clk 0:01:46]}  Nxe5 {[%clk 0:02:49]} 16. Nfxe5 {[%clk 0:01:46]}  Nf4 {[%clk 0:02:49]} 17. Bf3 {[%clk 0:01:46]}  f6 {[%clk 0:02:31]} 18. Nc6 {[%clk 0:01:33]}  Bxf3 {[%clk 0:02:21]} 19. gxf3 {[%clk 0:01:20]}  Rf7 {[%clk 0:02:20]} 20. Rfd1 {[%clk 0:01:18]}  Rc8 {[%clk 0:02:12]} 21. Nxe7+ {[%clk 0:01:13]}  Rxe7 {[%clk 0:02:11]} 22. Rd6 {[%clk 0:01:14]}  Ra8 {[%clk 0:02:08]} 23. Rad1 {[%clk 0:01:02]}  Kf7 {[%clk 0:02:07]} 24. Rc6 {[%clk 0:00:56]}  e5 {[%clk 0:02:02]} 25. Rxc5 {[%clk 0:00:52]}  Kg6 {[%clk 0:02:02]} 26. Kf1 {[%clk 0:00:48]}  Kg5 {[%clk 0:02:00]} 27. Nd6 {[%clk 0:00:38]}  Rea7 {[%clk 0:01:47]} 28. b4 {[%clk 0:00:34]}  Kh4 {[%clk 0:01:45]} 29. Nf5+ {[%clk 0:00:14]}  Kh3 {[%clk 0:01:43]} 30. Kg1 {[%clk 0:00:13]}  Re8 {[%clk 0:01:31]} 31. Kh1 {[%clk 0:00:12]}  g6 {[%clk 0:01:30]} 32. Ne3 {[%clk 0:00:06]}  f5 {[%clk 0:01:29]} 33. Nc4 {[%clk 0:00:04]}  e4 {[%clk 0:01:24]} 34. Re5 {[%clk 0:00:03]}  Rxe5 {[%clk 0:01:22]} 35. Nxe5 {[%clk 0:00:04]}  Re7 {[%clk 0:01:22]} 36. Nc6 {[%clk 0:00:05]}  Re8 {[%clk 0:01:22]} 37. b5 {[%clk 0:00:05]}  axb5 {[%clk 0:01:22]} 38. axb5 {[%clk 0:00:06]}  exf3 {[%clk 0:01:22]} 39. b6 {[%clk 0:00:05]}  Re2 {[%clk 0:01:20]} 40. Rf1 {[%clk 0:00:02]}  Nd3 {[%clk 0:01:09]} 41. Kg1 {[%clk 0:00:02]}  Rb2 {[%clk 0:01:08]} 42. Nb4 {[%clk 0:00:02]}  Nxb4 {[%clk 0:01:08]} 43. cxb4 {[%clk 0:00:03]}  Rxb4 {[%clk 0:01:08]} 44. Rc1 {[%clk 0:00:02]}  Rxb6 {[%clk 0:01:08]} 45. Kh1 {[%clk 0:00:02]}  Rb2 {[%clk 0:01:08]} 46. Rf1 {[%clk 0:00:02]}  f4 {[%clk 0:01:08]} 47. Kg1 {[%clk 0:00:02]}  g5 {[%clk 0:01:09]} 48. Kh1 {[%clk 0:00:03]}  g4 {[%clk 0:01:09]} 49. Kg1 {[%clk 0:00:02]}  h5 {[%clk 0:01:10]} 50. Kh1 {[%clk 0:00:02]}  h4 {[%clk 0:01:10]} 51. Kg1 {[%clk 0:00:01]}  g3 {[%clk 0:01:11]} 52. fxg3 {[%clk 0:00:02]}  Rg2+ {[%clk 0:01:10]} 53. Kh1 {[%clk 0:00:03]}  Rxh2+ {[%clk 0:01:11]} 54. Kg1 {[%clk 0:00:00]}  f2+ {[%clk 0:01:09]} 0-1


[Site "https://www.chess.com"]

[Event "Titled Tuesday Blitz November 07 Early 2023"]
[White "Navara, David"]
[Black "Lobanov, Sergei"]
[WhiteFideId "309095"]
[BlackFideId "24183750"]
[WhiteElo "2938"]
[BlackElo "2819"]
[Result "1/2-1/2"]
[Round "4"]
[TimeControl "180+1"]
[Date "2023.11.07"]
[WhiteClock "0:00:10"]
[BlackClock "0:00:08"]
[Board "12"]

1. e4 {[%clk 0:03:00]}  e5 {[%clk 0:02:59]} 2. Nf3 {[%clk 0:03:01]}  Nc6 {[%clk 0:03:00]} 3. a4 {[%clk 0:03:01]}  Nf6 {[%clk 0:02:59]} 4. Nc3 {[%clk 0:03:01]}  Be7 {[%clk 0:02:48]} 5. Bb5 {[%clk 0:02:48]}  O-O {[%clk 0:02:47]} 6. d3 {[%clk 0:02:41]}  d6 {[%clk 0:02:44]} 7. h3 {[%clk 0:02:38]}  Be6 {[%clk 0:02:35]} 8. a5 {[%clk 0:02:23]}  a6 {[%clk 0:02:32]} 9. Bc4 {[%clk 0:02:23]}  d5 {[%clk 0:02:23]} 10. exd5 {[%clk 0:02:22]}  Nxd5 {[%clk 0:02:24]} 11. Bd2 {[%clk 0:02:05]}  Nxc3 {[%clk 0:01:59]} 12. Bxc3 {[%clk 0:02:06]}  Bxc4 {[%clk 0:02:00]} 13. dxc4 {[%clk 0:02:07]}  Bc5 {[%clk 0:01:59]} 14. Qd5 {[%clk 0:01:54]}  Qe7 {[%clk 0:01:55]} 15. O-O-O {[%clk 0:01:16]}  Rad8 {[%clk 0:01:46]} 16. Qe4 {[%clk 0:01:17]}  f5 {[%clk 0:01:46]} 17. Qe2 {[%clk 0:01:17]}  e4 {[%clk 0:01:44]} 18. Nd2 {[%clk 0:01:17]}  Bd4 {[%clk 0:00:53]} 19. Bxd4 {[%clk 0:01:07]}  Nxd4 {[%clk 0:00:53]} 20. Qe3 {[%clk 0:01:08]}  Qb4 {[%clk 0:00:30]} 21. c3 {[%clk 0:00:58]}  Nb3+ {[%clk 0:00:30]} 22. Nxb3 {[%clk 0:00:59]}  Qxb3 {[%clk 0:00:31]} 23. Qc5 {[%clk 0:00:55]}  c6 {[%clk 0:00:21]} 24. Rxd8 {[%clk 0:00:40]}  Rxd8 {[%clk 0:00:21]} 25. Qxf5 {[%clk 0:00:41]}  Qxc4 {[%clk 0:00:19]} 26. Re1 {[%clk 0:00:38]}  Qa4 {[%clk 0:00:16]} 27. Qe6+ {[%clk 0:00:29]}  Kf8 {[%clk 0:00:16]} 28. Qf5+ {[%clk 0:00:25]}  Kg8 {[%clk 0:00:16]} 29. Qe6+ {[%clk 0:00:12]}  Kf8 {[%clk 0:00:17]} 30. Kb1 {[%clk 0:00:07]}  Rd1+ {[%clk 0:00:12]} 31. Rxd1 {[%clk 0:00:08]}  Qxd1+ {[%clk 0:00:13]} 32. Ka2 {[%clk 0:00:09]}  Qa4+ {[%clk 0:00:14]} 33. Kb1 {[%clk 0:00:09]}  Qd1+ {[%clk 0:00:14]} 34. Ka2 {[%clk 0:00:09]}  Qa4+ {[%clk 0:00:11]} 35. Kb1 {[%clk 0:00:10]}  Qd1+ {[%clk 0:00:08]} 1/2-1/2


[Site "https://www.chess.com"]

[Event "Titled Tuesday Blitz November 07 Early 2023"]
[White "Khismatullin, Denis"]
[Black "Suyarov, Mukhammadzokhid"]
[WhiteFideId "4142578"]
[BlackFideId "14210495"]
[WhiteElo "2932"]
[BlackElo "2815"]
[Result "1-0"]
[Round "4"]
[TimeControl "180+1"]
[Date "2023.11.07"]
[WhiteClock "0:01:00"]
[BlackClock "0:01:06"]
[Board "13"]

1. e4 {[%clk 0:03:00]}  e6 {[%clk 0:02:59]} 2. d4 {[%clk 0:03:00]}  d5 {[%clk 0:02:59]} 3. exd5 {[%clk 0:03:00]}  exd5 {[%clk 0:03:00]} 4. Nf3 {[%clk 0:03:00]}  Nc6 {[%clk 0:03:01]} 5. Bb5 {[%clk 0:02:58]}  Bd6 {[%clk 0:03:00]} 6. O-O {[%clk 0:02:53]}  Ne7 {[%clk 0:03:00]} 7. Re1 {[%clk 0:02:53]}  O-O {[%clk 0:03:00]} 8. Nbd2 {[%clk 0:02:52]}  Bg4 {[%clk 0:02:57]} 9. c3 {[%clk 0:02:50]}  Ng6 {[%clk 0:02:55]} 10. h3 {[%clk 0:02:47]}  Bf5 {[%clk 0:02:55]} 11. Nf1 {[%clk 0:02:45]}  h6 {[%clk 0:02:44]} 12. Ne3 {[%clk 0:02:38]}  Be6 {[%clk 0:02:43]} 13. Bf1 {[%clk 0:02:23]}  Nf4 {[%clk 0:02:41]} 14. Ng4 {[%clk 0:02:17]}  Qf6 {[%clk 0:02:16]} 15. Nxf6+ {[%clk 0:02:16]}  gxf6 {[%clk 0:02:15]} 16. Bxf4 {[%clk 0:02:15]}  Bxf4 {[%clk 0:02:16]} 17. g3 {[%clk 0:02:15]}  Bd6 {[%clk 0:02:16]} 18. Qd2 {[%clk 0:02:15]}  Kg7 {[%clk 0:02:16]} 19. Nh4 {[%clk 0:02:14]}  Ne7 {[%clk 0:02:14]} 20. Bd3 {[%clk 0:02:12]}  Rae8 {[%clk 0:02:14]} 21. Kg2 {[%clk 0:02:10]}  f5 {[%clk 0:02:13]} 22. Re2 {[%clk 0:02:08]}  Bd7 {[%clk 0:02:04]} 23. Rae1 {[%clk 0:02:06]}  c6 {[%clk 0:02:04]} 24. b4 {[%clk 0:02:01]}  b5 {[%clk 0:02:03]} 25. Re3 {[%clk 0:01:55]}  f4 {[%clk 0:01:57]} 26. Rxe7 {[%clk 0:01:52]}  Bxe7 {[%clk 0:01:57]} 27. Bf5 {[%clk 0:01:45]}  Bxh4 {[%clk 0:01:52]} 28. Bxd7 {[%clk 0:01:46]}  Bg5 {[%clk 0:01:48]} 29. gxf4 {[%clk 0:01:40]}  Bxf4 {[%clk 0:01:48]} 30. Qd1 {[%clk 0:01:36]}  Rxe1 {[%clk 0:01:47]} 31. Qxe1 {[%clk 0:01:36]}  Rd8 {[%clk 0:01:47]} 32. Bxc6 {[%clk 0:01:35]}  Rd6 {[%clk 0:01:47]} 33. Bxb5 {[%clk 0:01:34]}  Re6 {[%clk 0:01:47]} 34. Qd1 {[%clk 0:01:31]}  Rg6+ {[%clk 0:01:47]} 35. Kh1 {[%clk 0:01:30]}  Bb8 {[%clk 0:01:46]} 36. Bd3 {[%clk 0:01:29]}  Rb6 {[%clk 0:01:45]} 37. Qg4+ {[%clk 0:01:28]}  Kf8 {[%clk 0:01:45]} 38. Qc8+ {[%clk 0:01:24]}  Kg7 {[%clk 0:01:41]} 39. a4 {[%clk 0:01:23]}  a5 {[%clk 0:01:37]} 40. bxa5 {[%clk 0:01:22]}  Rb2 {[%clk 0:01:37]} 41. a6 {[%clk 0:01:18]}  h5 {[%clk 0:01:37]} 42. Kg2 {[%clk 0:01:14]}  h4 {[%clk 0:01:37]} 43. Kf3 {[%clk 0:01:11]}  Bh2 {[%clk 0:01:36]} 44. a7 {[%clk 0:01:08]}  Rb6 {[%clk 0:01:25]} 45. Qg4+ {[%clk 0:01:07]}  Kh6 {[%clk 0:01:23]} 46. Qxh4+ {[%clk 0:01:06]}  Kg7 {[%clk 0:01:24]} 47. Qh7+ {[%clk 0:01:05]}  Kf6 {[%clk 0:01:24]} 48. a8=Q {[%clk 0:01:04]}  Bb8 {[%clk 0:01:24]} 49. Qxd5 {[%clk 0:01:02]}  Rb2 {[%clk 0:01:06]} 50. Qdxf7+ {[%clk 0:01:00]} 1-0


[Site "https://www.chess.com"]